fUSD/lending_fUSD_20250720
["ID","MTS","AMOUNT","RATE_DAILY","PERIOD"]
[373572644,1753049436814,-480.0,0.00019178,2]
[373572645,1753049436824,-460.0,0.00019178,2]
[373572646,1753049436835,-632.04,0.00019178,2]
[373572647,1753049436846,-480.0,0.00019178,2]
[373572648,1753049436856,-560.52,0.00019178,2]
[373572649,1753049436866,-460.0,0.00019178,2]
[373572650,1753049436875,-480.0,0.00019178,2]
[373572651,1753049436886,-480.0,0.00019178,2]
[373572652,1753049436896,-480.0,0.00019178,2]
[373572653,1753049436906,-544.49,0.00019178,2]
[373572654,1753049436916,-442.86270857,0.00019178,2]
[373572655,1753049436926,-495.85558399,0.00019178,2]
[373572656,1753049436940,-480.0,0.00019178,2]
[373572657,1753049436949,-480.0,0.00019178,2]
[373572658,1753049436959,-1144.21,0.00019178,2]
[373572659,1753049436969,-480.0,0.00019178,2]
[373572660,1753049436979,-1043.19,0.00019178,2]
[373572661,1753049436989,-480.0,0.00019178,2]
[373572662,1753049436999,-480.0,0.00019178,2]
[373572663,1753049437010,-480.0,0.00019178,2]
[373572664,1753049437020,-480.0,0.00019178,2]
[373572665,1753049437030,-480.0,0.00019178,2]
[373572666,1753049437040,-480.0,0.00019178,2]
[373572667,1753049437049,-480.0,0.00019178,2]
[373572668,1753049437058,-585.17,0.00019178,2]
[373572669,1753049437068,-480.0,0.00019178,2]
[373572670,1753049437077,-460.0,0.00019178,2]
[373572671,1753049437087,-480.0,0.00019178,2]
[373572672,1753049437097,-480.0,0.00019178,2]
[373572673,1753049437107,-591.18,0.00019178,2]
[373572674,1753049437117,-460.0,0.00019178,2]
[373572675,1753049437126,-701.68,0.00019178,2]
[373572676,1753049437135,-2289.53,0.00019178,2]
[373572677,1753049437144,-480.0,0.00019178,2]
[373572678,1753049437154,-480.0,0.00019178,2]
[373572679,1753049437164,-480.0,0.00019178,2]
[373572680,1753049437173,-503.2,0.00019178,2]
[373572681,1753049437182,-480.0,0.00019178,2]
[373572682,1753049437192,-406.79609025,0.00019178,2]
[373572683,1753049437201,-480.0,0.00019178,2]
[373572684,1753049437211,-480.0,0.00019178,2]
[373572685,1753049437220,-480.0,0.00019178,2]
[373572686,1753049437231,-480.0,0.00019178,2]
[373572687,1753049437240,-447.16912381,0.00019178,2]
[373572688,1753049437250,-480.0,0.00019178,2]
[373572689,1753049437260,-842.95,0.00019178,2]
[373572690,1753049437269,-480.0,0.00019178,2]
[373572691,1753049437279,-480.0,0.00019178,2]
[373572692,1753049437289,-480.0,0.00019178,2]
[373572693,1753049437299,-354.24337126,0.00019178,2]
[373572694,1753049437309,-480.0,0.00019178,2]
[373572695,1753049437319,-480.0,0.00019178,2]
[373572696,1753049437329,-530.39537323,0.00019178,2]
[373572697,1753049437339,-1164.15,0.00019178,2]
[373572698,1753049437348,-480.0,0.00019178,2]
[373572699,1753049437361,-480.0,0.00019178,2]
[373572700,1753049437371,-286.74282667,0.00019178,2]
[373572701,1753049437381,-452.8386376,0.00019178,2]
[373572702,1753049437390,-480.0,0.00019178,2]
[373572703,1753049437400,-1028.4,0.00019178,2]
[373572704,1753049437410,-480.0,0.00019178,2]
[373572705,1753049437420,-480.0,0.00019178,2]
[373572706,1753049437429,-480.0,0.00019178,2]
[373572707,1753049437439,-480.0,0.00019178,2]
[373572708,1753049437448,-480.0,0.00019178,2]
[373572709,1753049437458,-480.0,0.00019178,2]
[373572710,1753049437468,-480.0,0.00019178,2]
[373572711,1753049437480,-1167.28,0.00019178,2]
[373572712,1753049437489,-480.0,0.00019178,2]
[373572713,1753049437499,-480.0,0.00019178,2]
[373572714,1753049437509,-603.99,0.00019178,2]
[373572715,1753049437519,-619.1,0.00019178,2]
[373572716,1753049437528,-480.0,0.00019178,2]
[373572717,1753049437537,-480.0,0.00019178,2]
[373572718,1753049437547,-480.0,0.00019178,2]
[373572719,1753049437556,-480.0,0.00019178,2]
[373572720,1753049437565,-461.05667725,0.00019178,2]
[373572721,1753049437575,-271.94071783,0.00019178,2]
[373572722,1753049437584,-500.0,0.00019178,2]
[373572723,1753049437594,-500.0,0.00019178,2]
[373572724,1753049437603,-463.35243139,0.00019178,2]
[373572725,1753049437612,-361.10120204,0.00019178,2]
[373572726,1753049437621,-480.0,0.00019178,2]
[373572727,1753049437631,-480.0,0.00019178,2]
[373572728,1753049437640,-480.0,0.00019178,2]
[373572729,1753049437649,-480.0,0.00019178,2]
[373572730,1753049437658,-480.0,0.00019178,2]
[373572731,1753049437668,-480.0,0.00019178,2]
[373572732,1753049437677,-677.99,0.00019178,2]
[373572733,1753049437686,-1280.16,0.00019178,2]
[373572734,1753049437695,-490.63,0.00019178,2]
[373572735,1753049437705,-480.0,0.00019178,2]
[373572736,1753049437716,-480.0,0.00019178,2]
[373572737,1753049437726,-480.0,0.00019178,2]
[373572738,1753049437738,-460.0,0.00019178,2]
[373572739,1753049437747,-440.0,0.00019178,2]
[373572740,1753049437756,-1281.5,0.00019178,2]
[373572741,1753049437765,-480.0,0.00019178,2]
[373572742,1753049437775,-480.0,0.00019178,2]
[373572743,1753049437784,-405.52954103,0.00019178,2]
[373572744,1753049437794,-803.15,0.00019178,2]
[373572745,1753049437803,-480.0,0.00019178,2]
[373572746,1753049437812,-491.06,0.00019178,2]
[373572747,1753049437821,-480.0,0.00019178,2]
[373572748,1753049437831,-462.71695911,0.00019178,2]
[373572749,1753049437840,-480.0,0.00019178,2]
[373572750,1753049437849,-480.0,0.00019178,2]
[373572751,1753049437859,-440.0,0.00019178,2]
[373572752,1753049437868,-480.0,0.00019178,2]
[373572753,1753049437878,-480.0,0.00019178,2]
[373572754,1753049437887,-480.0,0.00019178,2]
[373572755,1753049437896,-480.0,0.00019178,2]
[373572756,1753049437906,-480.0,0.00019178,2]
[373572757,1753049437916,-480.0,0.00019178,2]
[373572758,1753049437926,-480.0,0.00019178,2]
[373572759,1753049437938,-1423.62,0.00019178,2]
[373572760,1753049437947,-480.0,0.00019178,2]
[373572761,1753049437957,-1127.37,0.00019178,2]
[373572762,1753049437966,-480.0,0.00019178,2]
[373572763,1753049437975,-480.0,0.00019178,2]
[373572764,1753049437986,-480.0,0.00019178,2]
[373572765,1753049437996,-1189.08,0.00019178,2]
[373572766,1753049438006,-480.0,0.00019178,2]
[373572767,1753049438017,-480.0,0.00019178,2]
[373572768,1753049438027,-486.15242684,0.00019178,2]
[373572769,1753049438037,-480.0,0.00019178,2]
[373572770,1753049438046,-446.13333309,0.00019178,2]
[373572771,1753049438056,-480.0,0.00019178,2]
[373572772,1753049438065,-818.3,0.00019178,2]
[373572773,1753049438075,-480.0,0.00019178,2]
[373572774,1753049438084,-460.0,0.00019178,2]
[373572775,1753049438094,-480.0,0.00019178,2]
[373572776,1753049438103,-929.08,0.00019178,2]
[373572777,1753049438112,-480.0,0.00019178,2]
[373572778,1753049438122,-480.0,0.00019178,2]
[373572779,1753049438131,-480.0,0.00019178,2]
[373572780,1753049438141,-480.0,0.00019178,2]
[373572781,1753049438151,-480.0,0.00019178,2]
[373572782,1753049438161,-480.0,0.00019178,2]
[373572783,1753049438170,-449.11222193,0.00019178,2]
[373572784,1753049438179,-480.0,0.00019178,2]
[373572785,1753049438189,-1332.65,0.00019178,2]
[373572786,1753049438199,-651.66,0.00019178,2]
[373572787,1753049438208,-366.31710982,0.00019178,2]
[373572880,1753049439151,-113.68289018,0.00019178,2]
[373572882,1753049439161,-480.0,0.00019178,2]
[373572884,1753049439171,-1372.4,0.00019178,2]
[373572885,1753049439180,-480.0,0.00019178,2]
[373572887,1753049439189,-480.0,0.00019178,2]
[373572889,1753049439198,-480.0,0.00019178,2]
[373572891,1753049439207,-480.0,0.00019178,2]
[373572893,1753049439217,-1052.2,0.00019178,2]
[373572895,1753049439226,-1002.05,0.00019178,2]
[373572898,1753049439241,-460.0,0.00019178,2]
[373572900,1753049439250,-4461.96,0.00019178,2]
[373572901,1753049439260,-320.0,0.00019178,2]
[373572903,1753049439270,-423.83355884,0.00019178,2]
[373572905,1753049439279,-480.0,0.00019178,2]
[373572907,1753049439288,-480.0,0.00019178,2]
[373572909,1753049439298,-480.0,0.00019178,2]
[373572911,1753049439307,-480.0,0.00019178,2]
[373572913,1753049439317,-395.62580891,0.00019178,2]
[373572914,1753049439327,-480.0,0.00019178,2]
[373572916,1753049439336,-480.0,0.00019178,2]
[373572918,1753049439346,-480.0,0.00019178,2]
[373572920,1753049439356,-480.0,0.00019178,2]
[373572922,1753049439365,-480.0,0.00019178,2]
[373572924,1753049439375,-461.90170953,0.00019178,2]
[373572926,1753049439384,-566.27,0.00019178,2]
[373572928,1753049439394,-480.0,0.00019178,2]
[373572930,1753049439403,-480.0,0.00019178,2]
[373572932,1753049439412,-480.0,0.00019178,2]
[373572934,1753049439422,-480.0,0.00019178,2]
[373572936,1753049439432,-480.0,0.00019178,2]
[373572938,1753049439442,-460.0,0.00019178,2]
[373572940,1753049439452,-752.27,0.00019178,2]
[373572942,1753049439462,-539.59,0.00019178,2]
[373572945,1753049439471,-480.0,0.00019178,2]
[373572948,1753049439484,-480.0,0.00019178,2]
[373572950,1753049439493,-480.0,0.00019178,2]
[373572952,1753049439503,-480.0,0.00019178,2]
[373572954,1753049439512,-561.38,0.00019178,2]
[373572956,1753049439522,-345.90299901,0.00019178,2]
[373572958,1753049439531,-1395.7,0.00019178,2]
[373572960,1753049439541,-650.47,0.00019178,2]
[373572962,1753049439551,-480.0,0.00019178,2]
[373572964,1753049439560,-1360.34,0.00019178,2]
[373572966,1753049439570,-480.0,0.00019178,2]
[373572968,1753049439579,-480.0,0.00019178,2]
[373572970,1753049439589,-480.0,0.00019178,2]
[373572972,1753049439598,-670.5,0.00019178,2]
[373572974,1753049439608,-480.0,0.00019178,2]
[373572976,1753049439618,-480.0,0.00019178,2]
[373572978,1753049439627,-686.59,0.00019178,2]
[373572980,1753049439637,-1451.57,0.00019178,2]
[373572982,1753049439648,-861.21,0.00019178,2]
[373572984,1753049439657,-480.0,0.00019178,2]
[373572986,1753049439670,-480.0,0.00019178,2]
[373572989,1753049439680,-480.0,0.00019178,2]
[373572990,1753049439689,-480.0,0.00019178,2]
[373572992,1753049439699,-480.0,0.00019178,2]
[373572995,1753049439708,-864.82,0.00019178,2]
[373572996,1753049439718,-480.0,0.00019178,2]
[373572998,1753049439727,-480.0,0.00019178,2]
[373573000,1753049439738,-430.06006708,0.00019178,2]
[373573002,1753049439748,-480.0,0.00019178,2]
[373573004,1753049439757,-480.0,0.00019178,2]
[373573006,1753049439766,-480.0,0.00019178,2]
[373573008,1753049439777,-480.0,0.00019178,2]
[373573010,1753049439786,-480.0,0.00019178,2]
[373573012,1753049439797,-440.5015232,0.00019178,2]
[373573014,1753049439806,-528.92,0.00019178,2]
[373573016,1753049439816,-460.0,0.00019178,2]
[373573018,1753049439826,-500.0,0.00019178,2]
[373573020,1753049439835,-668.84,0.00019178,2]
[373573022,1753049439845,-480.0,0.00019178,2]
[373573024,1753049439854,-500.0,0.00019178,2]
[373573026,1753049439864,-480.0,0.00019178,2]
[373573028,1753049439873,-500.0,0.00019178,2]
[373573030,1753049439883,-461.82166781,0.00019178,2]
[373573032,1753049439892,-480.0,0.00019178,2]
[373573034,1753049439902,-480.0,0.00019178,2]
[373573036,1753049439912,-966.59,0.00019178,2]
[373573038,1753049439921,-480.0,0.00019178,2]
[373573040,1753049439931,-480.0,0.00019178,2]
[373573042,1753049439943,-480.0,0.00019178,2]
[373573044,1753049439953,-480.0,0.00019178,2]
[373573046,1753049439962,-849.56,0.00019178,2]
[373573048,1753049439971,-480.0,0.00019178,2]
[373573050,1753049439983,-480.0,0.00019178,2]
[373573051,1753049439992,-480.0,0.00019178,2]
[373573053,1753049440002,-480.0,0.00019178,2]
[373573056,1753049440014,-480.0,0.00019178,2]
[373573058,1753049440025,-480.0,0.00019178,2]
[373573060,1753049440034,-555.05,0.00019178,2]
[373573062,1753049440045,-460.0,0.00019178,2]
[373573064,1753049440054,-480.0,0.00019178,2]
[373573065,1753049440064,-362.91572536,0.00019178,2]
[373573067,1753049440074,-710.19,0.00019178,2]
[373573069,1753049440085,-480.0,0.00019178,2]
[373573071,1753049440094,-480.0,0.00019178,2]
[373573073,1753049440104,-480.0,0.00019178,2]
[373573075,1753049440113,-1216.02,0.00019178,2]
[373573077,1753049440123,-480.0,0.00019178,2]
[373573079,1753049440132,-440.0,0.00019178,2]
[373573081,1753049440141,-480.0,0.00019178,2]
[373573083,1753049440150,-480.0,0.00019178,2]
[373573085,1753049440160,-162.71903928,0.00019178,2]
[373573087,1753049440170,-480.0,0.00019178,2]
[373573089,1753049440179,-480.0,0.00019178,2]
[373573091,1753049440188,-461.35707412,0.00019178,2]
[373573092,1753049440198,-480.0,0.00019178,2]
[373573093,1753049440207,-480.0,0.00019178,2]
[373573094,1753049440216,-480.0,0.00019178,2]
[373573095,1753049440225,-492.58,0.00019178,2]
[373573096,1753049440238,-519.08,0.00019178,2]
[373573097,1753049440248,-4732.91,0.00019178,2]
[373573098,1753049440258,-3179.74,0.00019178,2]
[373573099,1753049440268,-480.0,0.00019178,2]
[373573100,1753049440278,-480.0,0.00019178,2]
[373573101,1753049440288,-480.0,0.00019178,2]
[373573102,1753049440297,-466.24065385,0.00019178,2]
[373573103,1753049440307,-593.3,0.00019178,2]
[373573104,1753049440316,-1233.47,0.00019178,2]
[373573105,1753049440325,-462.31733432,0.00019178,2]
[373573106,1753049440335,-480.0,0.00019178,2]
[373573107,1753049440344,-480.0,0.00019178,2]
[373573108,1753049440354,-480.0,0.00019178,2]
[373573109,1753049440364,-480.0,0.00019178,2]
[373573110,1753049440373,-480.0,0.00019178,2]
[373573112,1753049440383,-931.07,0.00019178,2]
[373573114,1753049440392,-480.0,0.00019178,2]
[373573116,1753049440403,-480.0,0.00019178,2]
[373573118,1753049440412,-480.0,0.00019178,2]
[373573120,1753049440422,-480.0,0.00019178,2]
[373573122,1753049440431,-480.0,0.00019178,2]
[373573124,1753049440441,-635.68,0.00019178,2]
[373573126,1753049440450,-749.33,0.00019178,2]
[373573128,1753049440460,-443.14359034,0.00019178,2]
[373573130,1753049440469,-848.45,0.00019178,2]
[373573132,1753049440481,-906.58,0.00019178,2]
[373573134,1753049440491,-480.0,0.00019178,2]
[373573136,1753049440500,-480.0,0.00019178,2]
[373573138,1753049440509,-473.02087953,0.00019178,2]
[373573140,1753049440519,-500.0,0.00019178,2]
[373573142,1753049440528,-500.0,0.00019178,2]
[373573144,1753049440538,-480.0,0.00019178,2]
[373573146,1753049440548,-480.0,0.00019178,2]
[373573148,1753049440557,-480.0,0.00019178,2]
[373573150,1753049440566,-480.0,0.00019178,2]
[373573152,1753049440575,-480.0,0.00019178,2]
[373573154,1753049440584,-480.0,0.00019178,2]
[373573156,1753049440594,-601.18,0.00019178,2]
[373573158,1753049440603,-480.0,0.00019178,2]
[373573160,1753049440612,-480.0,0.00019178,2]
[373573162,1753049440621,-480.0,0.00019178,2]
[373573164,1753049440630,-480.0,0.00019178,2]
[373573166,1753049440640,-480.0,0.00019178,2]
[373573168,1753049440649,-480.0,0.00019178,2]
[373573170,1753049440659,-501.79,0.00019178,2]
[373573172,1753049440668,-480.0,0.00019178,2]
[373573174,1753049440677,-472.63214762,0.00019178,2]
[373573176,1753049440687,-480.0,0.00019178,2]
[373573178,1753049440698,-480.0,0.00019178,2]
[373573180,1753049440707,-460.23375397,0.00019178,2]
[373573182,1753049440716,-532.89,0.00019178,2]
[373573184,1753049440726,-480.0,0.00019178,2]
[373573186,1753049440739,-480.0,0.00019178,2]
[373573188,1753049440748,-480.0,0.00019178,2]
[373573190,1753049440757,-1145.21,0.00019178,2]
[373573192,1753049440766,-1535.11,0.00019178,2]
[373573194,1753049440775,-480.0,0.00019178,2]
[373573196,1753049440785,-806.96,0.00019178,2]
[373573198,1753049440794,-460.0,0.00019178,2]
[373573200,1753049440803,-480.0,0.00019178,2]
[373573202,1753049440812,-480.0,0.00019178,2]
[373573204,1753049440822,-480.0,0.00019178,2]
[373573206,1753049440831,-480.0,0.00019178,2]
[373573208,1753049440841,-1042.94066008,0.00019178,2]
[373573213,1753049440877,-391.75933992,0.00019178,2]
[373573215,1753049440886,-470.99066258,0.00019178,2]
[373573219,1753049440911,-34.25933742,0.00019178,2]
[373573221,1753049440920,-480.0,0.00019178,2]
[373573223,1753049440933,-480.0,0.00019178,2]
[373573225,1753049440942,-1566.09,0.00019178,2]
[373573227,1753049440952,-480.0,0.00019178,2]
[373573229,1753049440961,-480.0,0.00019178,2]
[373573231,1753049440971,-480.0,0.00019178,2]
[373573233,1753049440982,-460.86680653,0.00019178,2]
[373573235,1753049440991,-961.38,0.00019178,2]
[373573237,1753049441001,-891.9,0.00019178,2]
[373573239,1753049441011,-4380.82,0.00019178,2]
[373573241,1753049441021,-480.0,0.00019178,2]
[373573243,1753049441030,-480.0,0.00019178,2]
[373573245,1753049441040,-480.0,0.00019178,2]
[373573247,1753049441050,-461.40219068,0.00019178,2]
[373573249,1753049441059,-591.58,0.00019178,2]
[373573251,1753049441068,-480.0,0.00019178,2]
[373573253,1753049441078,-480.0,0.00019178,2]
[373573255,1753049441087,-480.0,0.00019178,2]
[373573257,1753049441097,-480.0,0.00019178,2]
[373573259,1753049441106,-480.0,0.00019178,2]
[373573261,1753049441115,-551.01,0.00019178,2]
[373573263,1753049441125,-480.0,0.00019178,2]
[373573265,1753049441135,-490.0,0.00019178,2]
[373573267,1753049441144,-480.0,0.00019178,2]
[373573269,1753049441154,-460.0,0.00019178,2]
[373573271,1753049441163,-5396.2,0.00019178,2]
[373573273,1753049441173,-460.0,0.00019178,2]
[373573275,1753049441182,-1894.01,0.00019178,2]
[373573277,1753049441191,-480.0,0.00019178,2]
[373573279,1753049441201,-480.0,0.00019178,2]
[373573281,1753049441210,-480.0,0.00019178,2]
[373573283,1753049441219,-480.0,0.00019178,2]
[373573285,1753049441230,-1455.25,0.00019178,2]
[373573287,1753049441240,-480.0,0.00019178,2]
[373573298,1753049441336,-750.94,0.00019178,2]
[373573300,1753049441346,-480.0,0.00019178,2]
[373573302,1753049441355,-480.0,0.00019178,2]
[373573304,1753049441365,-1113.94,0.00019178,2]
[373573306,1753049441376,-480.0,0.00019178,2]
[373573308,1753049441385,-480.0,0.00019178,2]
[373573310,1753049441395,-480.0,0.00019178,2]
[373573312,1753049441404,-564.97,0.00019178,2]
[373573314,1753049441413,-480.0,0.00019178,2]
[373573316,1753049441423,-480.0,0.00019178,2]
[373573318,1753049441431,-480.0,0.00019178,2]
[373573320,1753049441441,-480.0,0.00019178,2]
[373573322,1753049441450,-772.25,0.00019178,2]
[373573324,1753049441459,-391.25574726,0.00019178,5]
[373573327,1753049441478,-849.49,0.00019178,2]
[373573329,1753049441490,-480.0,0.00019178,2]
[373573331,1753049441500,-460.0,0.00019178,2]
[373573333,1753049441509,-480.0,0.00019178,2]
[373573335,1753049441518,-480.0,0.00019178,2]
[373573337,1753049441529,-954.07,0.00019178,2]
[373573340,1753049441538,-480.0,0.00019178,2]
[373573342,1753049441548,-238.68021219,0.00019178,2]
[373573344,1753049441557,-442.69559299,0.00019178,2]
[373573346,1753049441567,-480.0,0.00019178,2]
[373573348,1753049441576,-480.0,0.00019178,2]
[373573350,1753049441585,-1847.64,0.00019178,2]
[373573352,1753049441596,-4225.24,0.00019178,2]
[373573354,1753049441605,-772.06,0.00019178,2]
[373573356,1753049441614,-776.7,0.00019178,2]
[373573358,1753049441623,-480.0,0.00019178,2]
[373573360,1753049441633,-480.0,0.00019178,2]
[373573362,1753049441642,-480.0,0.00019178,2]
[373573364,1753049441651,-1106.15,0.00019178,2]
[373573366,1753049441660,-460.0,0.00019178,2]
[373573368,1753049441670,-480.0,0.00019178,2]
[373573370,1753049441680,-480.0,0.00019178,2]
[373573372,1753049441689,-480.0,0.00019178,2]
[373573374,1753049441698,-480.0,0.00019178,2]
[373573376,1753049441708,-480.0,0.00019178,2]
[373573378,1753049441717,-2124.17,0.00019178,2]
[373573380,1753049441726,-468.06060384,0.00019178,2]
[373573382,1753049441738,-480.0,0.00019178,2]
[373573384,1753049441748,-480.0,0.00019178,2]
[373573386,1753049441757,-2004.47,0.00019178,2]
[373573388,1753049441767,-480.52,0.00019178,2]
[373573390,1753049441776,-480.0,0.00019178,2]
[373573392,1753049441785,-799.27,0.00019178,2]
[373573394,1753049441795,-461.01567663,0.00019178,2]
[373573396,1753049441804,-480.0,0.00019178,2]
[373573398,1753049441814,-480.0,0.00019178,2]
[373573400,1753049441823,-480.0,0.00019178,2]
[373573402,1753049441833,-589.25629437,0.00019178,2]
[373573404,1753049441842,-1149.82,0.00019178,2]
[373573406,1753049441852,-480.0,0.00019178,2]
[373573408,1753049441862,-2426.34,0.00019178,2]
[373573410,1753049441871,-480.0,0.00019178,2]
[373573412,1753049441881,-480.0,0.00019178,2]
[373573414,1753049441891,-460.0,0.00019178,2]
[373573416,1753049441900,-480.0,0.00019178,2]
[373573418,1753049441909,-647.38,0.00019178,2]
[373573420,1753049441918,-570.58770778,0.00019178,2]
[373573422,1753049441928,-378.92050091,0.00019178,2]
[373573424,1753049441943,-480.0,0.00019178,2]
[373573426,1753049441953,-695.82,0.00019178,2]
[373573428,1753049441962,-480.0,0.00019178,2]
[373573430,1753049441971,-160.429357,0.00019178,2]
[373573432,1753049441985,-480.0,0.00019178,2]
[373573434,1753049441995,-482.42,0.00019178,2]
[373573436,1753049442005,-773.09,0.00019178,2]
[373573438,1753049442015,-451.582,0.00019178,2]
[373573440,1753049442025,-480.0,0.00019178,2]
[373573442,1753049442034,-480.0,0.00019178,2]
[373573443,1753049442043,-158.478467,0.00019178,2]
[373573446,1753049442054,-996.48,0.00019178,2]
[373573448,1753049442063,-480.0,0.00019178,2]
[373573450,1753049442073,-480.0,0.00019178,2]
[373573451,1753049442082,-480.0,0.00019178,2]
[373573453,1753049442092,-542.21,0.00019178,2]
[373573455,1753049442102,-460.0,0.00019178,2]
[373573458,1753049442112,-480.0,0.00019178,2]
[373573460,1753049442122,-480.0,0.00019178,2]
[373573462,1753049442132,-480.0,0.00019178,2]
[373573463,1753049442142,-974.292247,0.00019178,2]
[373573466,1753049442152,-982.873719,0.00019178,2]
[373573468,1753049442162,-6295.85,0.00019178,2]
[373573470,1753049442172,-460.0,0.00019178,2]
[373573471,1753049442181,-3578.89,0.00019178,2]
[373573474,1753049442191,-480.0,0.00019178,2]
[373573475,1753049442201,-1912.45,0.00019178,2]
[373573478,1753049442210,-480.0,0.00019178,2]
[373573479,1753049442220,-880.07,0.00019178,2]
[373573481,1753049442229,-480.0,0.00019178,2]
[373573484,1753049442242,-480.0,0.00019178,2]
[373573487,1753049442252,-1148.18,0.00019178,2]
[373573489,1753049442261,-480.0,0.00019178,2]
[373573490,1753049442272,-480.0,0.00019178,2]
[373573492,1753049442282,-480.0,0.00019178,2]
[373573495,1753049442292,-497.01,0.00019178,2]
[373573496,1753049442301,-1446.49,0.00019178,2]
[373573499,1753049442311,-480.0,0.00019178,2]
[373573501,1753049442320,-480.0,0.00019178,2]
[373573503,1753049442330,-480.0,0.00019178,2]
[373573505,1753049442340,-480.0,0.00019178,2]
[373573507,1753049442349,-460.0,0.00019178,2]
[373573509,1753049442359,-480.0,0.00019178,2]
[373573511,1753049442368,-564.39,0.00019178,2]
[373573513,1753049442377,-552.6883597,0.00019178,2]
[373573516,1753049442387,-480.0,0.00019178,2]
[373573518,1753049442396,-814.8,0.00019178,2]
[373573520,1753049442406,-1486.55,0.00019178,2]
[373573522,1753049442415,-1303.33,0.00019178,2]
[373573524,1753049442425,-151.0,0.00019178,2]
[373573526,1753049442435,-480.0,0.00019178,2]
[373573528,1753049442444,-480.0,0.00019178,2]
[373573529,1753049442454,-360.0,0.00019178,2]
[373573532,1753049442464,-2707.97,0.00019178,2]
[373573534,1753049442473,-565.17,0.00019178,2]
[373573537,1753049442483,-460.0,0.00019178,2]
[373573540,1753049442493,-386.85733328,0.00019178,2]
[373573544,1753049442502,-480.0,0.00019178,2]
[373573549,1753049442511,-480.0,0.00019178,2]
[373573551,1753049442520,-480.0,0.00019178,2]
[373573553,1753049442530,-460.0,0.00019178,2]
[373573555,1753049442539,-480.0,0.00019178,2]
[373573557,1753049442549,-480.0,0.00019178,2]
[373573559,1753049442558,-480.0,0.00019178,2]
[373573561,1753049442567,-1586.52,0.00019178,2]
[373573563,1753049442577,-828.67,0.00019178,2]
[373573565,1753049442586,-480.0,0.00019178,2]
[373573567,1753049442595,-480.0,0.00019178,2]
[373573569,1753049442605,-886.526908,0.00019178,2]
[373573571,1753049442614,-480.0,0.00019178,2]
[373573573,1753049442624,-480.0,0.00019178,2]
[373573575,1753049442632,-1793.24,0.00019178,2]
[373573577,1753049442642,-504.65447519,0.00019178,2]
[373573579,1753049442651,-480.0,0.00019178,2]
[373573581,1753049442660,-880.14,0.00019178,2]
[373573583,1753049442669,-480.0,0.00019178,2]
[373573585,1753049442679,-480.0,0.00019178,2]
[373573587,1753049442688,-2211.33,0.00019178,2]
[373573589,1753049442697,-480.0,0.00019178,2]
[373573591,1753049442706,-480.0,0.00019178,2]
[373573593,1753049442715,-6328.95,0.00019178,2]
[373573595,1753049442725,-380.0,0.00019178,2]